fUSD/lending_fUSD_20240925
["ID","MTS","AMOUNT","RATE_DAILY","PERIOD"]
[339107876,1727254245891,-19.23421189,0.00012876,2]
[339107877,1727254245906,-480.76578811,0.00012876,2]
[339107878,1727254245916,-500.0,0.00012876,2]
[339107879,1727254245925,-387.22600333,0.00012876,2]
[339107880,1727254245936,-112.77399667,0.00012876,2]
[339107881,1727254245945,-843.47,0.00012876,2]
[339107882,1727254245954,-843.47,0.00012876,2]
[339107883,1727254245963,-843.47,0.00012876,2]
[339107884,1727254245972,-843.47,0.00012876,2]
[339107885,1727254245981,-843.47,0.00012876,2]
[339107886,1727254245990,-843.47,0.00012876,2]
[339107887,1727254246001,-843.47,0.00012876,2]
[339107888,1727254246010,-843.47,0.00012876,2]
[339107889,1727254246019,-843.47,0.00012876,2]
[339107890,1727254246028,-843.47,0.00012876,2]
[339107891,1727254246037,-843.47,0.00012876,2]
[339107892,1727254246047,-1109.22,0.00012876,2]
[339107893,1727254246056,-1109.22,0.00012876,2]
[339107894,1727254246065,-1109.22,0.00012876,2]
[339107895,1727254246075,-1109.22,0.00012876,2]
[339107896,1727254246085,-1109.22,0.00012876,2]
[339107897,1727254246094,-1109.22,0.00012876,2]
[339107898,1727254246104,-1109.22,0.00012876,2]
[339107899,1727254246113,-1109.22,0.00012876,2]
[339107900,1727254246130,-1109.22,0.00012876,2]
[339107901,1727254246140,-1109.22,0.00012876,2]
[339107902,1727254246150,-461.65114313,0.00012876,2]
[339107903,1727254246162,-313.06330969,0.00012876,2]
[339107904,1727254246174,-334.50554718,0.00012876,2]
[339107905,1727254246183,-238.76600517,0.00012876,2]
[339107906,1727254246195,-343.96399483,0.00012876,2]
[339107907,1727254246204,-236.62772903,0.00012876,2]
[339107909,1727254341874,157.32,0.00010959,2]
[339107910,1727254513182,150.0,9.815e-05,2]
[339107911,1727254513206,89.54,9.815e-05,2]
[339107934,1727254927063,150.0,0.00011,2]
[339107935,1727254927084,150.0,0.00011,2]
[339107936,1727254927103,150.0,0.00011,2]
[339107937,1727254927123,150.0,0.00011,2]
[339107938,1727254927143,150.0,0.00011,2]
[339107939,1727254927173,150.0,0.00011,2]
[339107940,1727254927194,150.0,0.00011,2]
[339107941,1727254952319,150.0,0.00010959,2]
[339107942,1727254952340,10.55,0.00010959,2]
[339107943,1727255019210,150.0,9.589e-05,2]
[339107944,1727255019232,3.28,9.589e-05,2]
[339107945,1727255033562,225.73888734,0.00021,60]
[339107947,1727255111592,1055.7343811,0.00022,120]
[339107948,1727255165442,164.85313248,9.661e-05,2]
[339107949,1727255165464,86.75686752,9.661e-05,2]
[339107950,1727255283876,150.0,0.00011,2]
[339107951,1727255283896,150.0,0.00011,2]
[339107952,1727255283916,150.0,0.00011,2]
[339107953,1727255283941,150.0,0.00011,2]
[339107954,1727255283962,150.0,0.00011,2]
[339107955,1727255283983,150.0,0.00011,2]
[339107956,1727255284003,150.0,0.00011,2]
[339107957,1727255284023,150.0,0.00011,2]
[339107958,1727255284046,8800.0,0.00011,2]
[339107991,1727255431673,-150.0,0.00011589,2]
[339107993,1727255431683,-224.35,0.00011694,2]
[339107995,1727255431693,-140.2179949,0.00011704,2]
[339107997,1727255431704,-84.7020051,0.00011704,2]
[339107999,1727255431713,-308.23,0.00011714,2]
[339108001,1727255431723,-250.0,0.00011721,2]
[339108002,1727255431732,-157.0679949,0.00011736,2]
[339108003,1727255431744,-842.9320051,0.00011736,2]
[339108004,1727255431753,-251.61,0.00011925,2]
[339108005,1727255431762,-1037.79017726,0.00012,2]
[339108006,1727255431774,-2705.49053353,0.00012,2]
[339108007,1727255431785,-2444.20000001,0.00012,2]
[339108008,1727255431797,-3812.5192892,0.00012,2]
[339108009,1727255431807,-303.03020671,0.0001228,2]
[339108010,1727255431816,-150.0,0.00012289,2]
[339108011,1727255431826,-58863.97075022,0.0001229,2]
[339108012,1727255431835,-1977.28,0.0001229,2]
[339108013,1727255431844,-499.99,0.0001229,2]
[339108014,1727255431853,-658.67853471,0.00012309,2]
[339108015,1727255431862,-299.99,0.00012309,2]
[339108016,1727255431872,-1163.8316,0.00012309,2]
[339108017,1727255431882,-658.67853469,0.00012364,2]
[339108018,1727255431892,-8716.63980003,0.00012409,7]
[339108019,1727255431901,-323.83,0.00012409,2]
[339108020,1727255431911,-500.0,0.00012409,2]
[339108021,1727255431921,-1201.9801,0.00012409,2]
[339108022,1727255431930,-4283.00338152,0.00012409,2]
[339108023,1727255431946,-107.24721848,0.00012409,2]
[339108024,1727255431955,-3790.42878205,0.00012409,2]
[339108029,1727255437972,-72851.66355887,0.00012409,2]
[339108030,1727255437983,-137740.41525908,0.00012409,2]
[339108031,1727255437993,-939.2133,0.00012409,2]
[339108032,1727255438002,-1854.36489092,0.00012409,2]
[339108033,1727255438190,-3140.71950908,0.00012409,2]
[339108034,1727255438200,-7559.7899,0.00012409,2]
[339108035,1727255438209,-1000.0,0.00012409,2]
[339108036,1727255438219,-658.67853469,0.00012418,2]
[339108037,1727255438228,-658.67853469,0.00012473,2]
[339108038,1727255438237,-658.67853469,0.00012527,2]
[339108039,1727255438248,-1147.0,0.00012538,2]
[339108040,1727255438257,-289.851,0.00012538,2]
[339108041,1727255438266,-5867.0,0.00012538,2]
[339108042,1727255438275,-1080.0,0.00012538,2]
[339108043,1727255438284,-658.67853469,0.00012582,2]
[339108044,1727255438295,-150.0,0.000126,2]
[339108046,1727255438304,-150.0,0.00012602,2]
[339108048,1727255438313,-150.0,0.00012603,2]
[339108049,1727255438323,-150.0,0.00012605,2]
[339108051,1727255438332,-150.0,0.00012606,2]
[339108053,1727255438341,-150.0,0.00012614,2]
[339108056,1727255438352,-150.0,0.00012618,2]
[339108057,1727255438363,-150.0,0.00012621,2]
[339108060,1727255438373,-150.0,0.00012622,2]
[339108061,1727255438382,-150.0,0.00012624,2]
[339108063,1727255438391,-150.0,0.00012625,2]
[339108065,1727255438400,-150.0,0.00012626,2]
[339108067,1727255438410,-150.0,0.00012626,2]
[339108069,1727255438419,-150.0,0.00012631,2]
[339108071,1727255438428,-150.0,0.00012634,2]
[339108073,1727255438437,-150.0,0.00012635,2]
[339108076,1727255438448,-658.67853469,0.00012636,2]
[339108078,1727255438458,-150.0,0.00012646,2]
[339108079,1727255438467,-1500.0,0.00012652,2]
[339108082,1727255438479,-150.0,0.00012655,2]
[339108084,1727255438488,-150.0,0.0001266,2]
[339108086,1727255438498,-150.0,0.00012661,2]
[339108088,1727255438507,-150.0,0.00012662,2]
[339108090,1727255438516,-150.0,0.00012662,2]
[339108092,1727255438526,-375.653,0.00012666,2]
[339108094,1727255438536,-150.0,0.00012669,2]
[339108096,1727255438556,-150.0,0.00012669,2]
[339108098,1727255438566,-150.0,0.0001267,2]
[339108100,1727255438575,-150.0,0.00012674,2]
[339108102,1727255438584,-150.0,0.00012675,2]
[339108104,1727255438593,-150.0,0.00012676,2]
[339108106,1727255438603,-150.0,0.00012678,2]
[339108108,1727255438612,-150.0,0.00012682,2]
[339108110,1727255438622,-1500.0,0.00012684,2]
[339108112,1727255438631,-150.0,0.00012684,2]
[339108114,1727255438641,-150.0,0.00012685,2]
[339108116,1727255438650,-150.0,0.0001269,2]
[339108118,1727255438659,-658.67853469,0.00012691,2]
[339108120,1727255438668,-150.0,0.00012694,2]
[339108122,1727255438679,-150.0,0.00012695,2]
[339108124,1727255438688,-150.0,0.00012695,2]
[339108126,1727255438697,-153.63575951,0.00012697,2]
[339108128,1727255438706,-150.0,0.00012698,2]
[339108130,1727255438717,-150.0,0.00012698,2]
[339108132,1727255438726,-150.0,0.00012699,2]
[339108134,1727255438735,-150.0,0.00012699,2]
[339108136,1727255438745,-155.0,0.000127,2]
[339108138,1727255438754,-600.0,0.000127,2]
[339108140,1727255438763,-150.0,0.00012701,2]
[339108142,1727255438773,-150.0,0.00012701,2]
[339108144,1727255438783,-150.0,0.00012702,2]
[339108146,1727255438793,-150.0,0.00012706,2]
[339108148,1727255438803,-150.0,0.00012707,2]
[339108150,1727255438812,-163.392,0.00012708,2]
[339108152,1727255438821,-150.0,0.00012708,2]
[339108154,1727255438831,-625.0,0.00012708,2]
[339108156,1727255438840,-448.0,0.00012708,2]
[339108158,1727255438849,-1420.0,0.00012708,2]
[339108160,1727255438858,-1263.0,0.00012708,2]
[339108162,1727255438867,-558.0,0.00012708,2]
[339108164,1727255438877,-810.0,0.00012708,2]
[339108166,1727255438886,-933.0,0.00012708,2]
[339108168,1727255438896,-554.0,0.00012708,2]
[339108170,1727255438905,-1904.0,0.00012708,2]
[339108172,1727255438914,-3348.0,0.00012708,2]
[339108174,1727255438923,-807.0,0.00012708,2]
[339108176,1727255438933,-1911.0,0.00012708,2]
[339108178,1727255438943,-150.0,0.00012709,2]
[339108180,1727255438953,-150.0,0.00012716,2]
[339108182,1727255438964,-150.0,0.00012722,2]
[339108184,1727255438975,-150.0,0.00012724,2]
[339108186,1727255438985,-1500.0,0.00012725,2]
[339108188,1727255438994,-150.0,0.00012729,2]
[339108190,1727255439003,-150.0,0.00012731,2]
[339108191,1727255439012,-150.0,0.00012732,2]
[339108192,1727255439021,-150.0,0.00012732,2]
[339108193,1727255439031,-150.0,0.00012733,2]
[339108194,1727255439042,-150.0,0.00012733,2]
[339108195,1727255439051,-150.0,0.00012737,2]
[339108196,1727255439060,-150.0,0.00012739,2]
[339108197,1727255439069,-150.0,0.00012739,2]
[339108198,1727255439078,-150.0,0.00012744,2]
[339108199,1727255439087,-658.67853469,0.00012745,2]
[339108200,1727255439097,-177.48,0.00012747,2]
[339108201,1727255439106,-150.0,0.00012748,2]
[339108202,1727255439116,-150.0,0.00012749,2]
[339108203,1727255439126,-150.0,0.00012752,2]
[339108204,1727255439137,-150.0,0.00012756,2]
[339108205,1727255439146,-150.0,0.00012766,2]
[339108206,1727255439157,-150.0,0.00012768,2]
[339108207,1727255439167,-500.0,0.00012773,2]
[339108208,1727255439176,-150.0,0.00012777,2]
[339108209,1727255439186,-150.0,0.00012778,2]
[339108210,1727255439195,-766.3186,0.0001278,2]
[339108211,1727255439204,-150.0,0.0001278,2]
[339108212,1727255439215,-150.0,0.0001278,2]
[339108213,1727255439226,-419.16125848,0.00012786,2]
[339108214,1727255439236,-150.0,0.00012787,2]
[339108215,1727255439246,-150.0,0.0001279,2]
[339108216,1727255439256,-150.0,0.00012794,2]
[339108217,1727255439265,-150.0,0.00012796,2]
[339108218,1727255439274,-150.0,0.00012798,2]
[339108219,1727255439285,-400.0,0.000128,5]
[339108220,1727255439295,-400.0,0.000128,2]
[339108221,1727255439304,-150.0,0.000128,2]
[339108222,1727255439313,-306.36,0.000128,2]
[339108223,1727255439322,-1013.34,0.000128,2]
[339108224,1727255439332,-658.67853469,0.000128,2]
[339108225,1727255439342,-1000.0,0.000128,2]
[339108226,1727255439353,-227.0,0.000128,2]
[339108228,1727255439366,-189.32387675,0.000128,2]
[339108230,1727255439376,-204.78508407,0.000128,2]
[339108233,1727255439387,-205.28,0.000128,2]
[339108235,1727255439396,-178.00056861,0.000128,2]
[339108236,1727255439406,-178.00056861,0.000128,2]
[339108238,1727255439416,-178.00056861,0.000128,2]
[339108239,1727255439425,-178.00056861,0.000128,2]
[339108240,1727255439434,-178.00056861,0.000128,2]
[339108241,1727255439444,-178.00056861,0.000128,2]
[339108243,1727255439453,-178.00056861,0.000128,2]
[339108244,1727255439463,-178.00056861,0.000128,2]
[339108245,1727255439472,-178.00056861,0.000128,2]
[339108246,1727255439481,-178.00056861,0.000128,2]
[339108247,1727255439491,-178.00056861,0.000128,2]
[339108248,1727255439501,-178.00056861,0.000128,2]
[339108249,1727255439510,-178.00056861,0.000128,2]
[339108251,1727255439519,-178.00056861,0.000128,2]
[339108252,1727255439529,-178.00056861,0.000128,2]
[339108253,1727255439539,-178.00056861,0.000128,2]
[339108254,1727255439548,-178.00056861,0.000128,2]
[339108255,1727255439559,-178.00056861,0.000128,2]
[339108256,1727255439571,-178.00056861,0.000128,2]
[339108258,1727255439580,-178.5,0.000128,2]
[339108260,1727255439589,-225.13993613,0.000128,2]
[339108263,1727255439598,-225.13993613,0.000128,2]
[339108264,1727255439607,-225.13993613,0.000128,2]
[339108265,1727255439616,-225.13993613,0.000128,2]
[339108266,1727255439625,-225.13993613,0.000128,2]
[339108267,1727255439634,-225.13993613,0.000128,2]
[339108268,1727255439644,-225.13993613,0.000128,2]
[339108269,1727255439653,-225.13993613,0.000128,2]
[339108270,1727255439663,-225.13993613,0.000128,2]
[339108271,1727255439672,-225.13993613,0.000128,2]
[339108272,1727255439682,-225.13993613,0.000128,2]
[339108273,1727255439691,-225.13993613,0.000128,2]
[339108274,1727255439701,-225.13993613,0.000128,2]
[339108275,1727255439710,-225.13993613,0.000128,2]
[339108276,1727255439719,-225.13993613,0.000128,2]
[339108277,1727255439728,-225.13993613,0.000128,2]
[339108278,1727255439737,-225.13993613,0.000128,2]
[339108279,1727255439747,-225.13993613,0.000128,2]
[339108280,1727255439756,-225.13993613,0.000128,2]
[339108281,1727255439765,-11380.21132578,0.000128,2]
[339108282,1727255439775,-225.63,0.000128,2]
[339108283,1727255439783,-515.0,0.000128,2]
[339108284,1727255439794,-150.0,0.00012804,2]
[339108285,1727255439803,-152.0,0.00012805,3]
[339108286,1727255439812,-150.0,0.00012809,2]
[339108287,1727255439821,-533.0,0.00012812,2]
[339108288,1727255439830,-150.0,0.00012812,2]
[339108289,1727255439839,-150.0,0.00012813,2]
[339108290,1727255439848,-150.0,0.00012814,2]
[339108291,1727255439857,-150.0,0.00012815,2]
[339108292,1727255439866,-150.0,0.00012817,2]
[339108293,1727255439875,-150.0,0.00012818,2]
[339108294,1727255439884,-150.0,0.00012818,2]
[339108295,1727255439893,-500.0,0.00012821,2]
[339108296,1727255439903,-150.0,0.00012821,2]
[339108297,1727255439912,-150.0,0.00012828,2]
[339108298,1727255439921,-500.0,0.0001283,2]
[339108299,1727255439931,-150.0,0.00012831,2]
[339108300,1727255439940,-150.0,0.00012834,2]
[339108301,1727255439949,-150.0,0.00012836,2]
[339108303,1727255439958,-500.0,0.00012838,2]
[339108304,1727255439967,-150.0,0.00012843,2]
[339108306,1727255439976,-150.0,0.00012844,2]
[339108308,1727255439985,-1500.0,0.00012847,2]
[339108310,1727255439995,-150.0,0.00012847,2]
[339108312,1727255440004,-500.0,0.00012847,2]
[339108314,1727255440013,-150.0,0.00012848,2]
[339108316,1727255440023,-150.0,0.00012848,2]
[339108318,1727255440032,-150.0,0.00012851,2]
[339108320,1727255440041,-152.0,0.00012856,4]
[339108322,1727255440051,-500.0,0.00012856,2]
[339108324,1727255440059,-150.0,0.00012857,2]
[339108326,1727255440069,-150.0,0.00012863,2]
[339108328,1727255440078,-150.0,0.00012863,2]
[339108330,1727255440088,-150.0,0.00012864,2]
[339108332,1727255440097,-500.0,0.00012865,2]
[339108334,1727255440106,-11884.53395567,0.00012865,2]
[339108336,1727255440115,-150.0,0.00012866,2]
[339108338,1727255440124,-150.0,0.00012868,2]
[339108340,1727255440133,-150.0,0.00012868,2]
[339108342,1727255440142,-150.0,0.00012869,2]
[339108344,1727255440152,-154.82,0.0001287,2]
[339108346,1727255440162,-400.0,0.0001287,2]
[339108348,1727255440171,-4632.95738,0.0001287,2]
[339108350,1727255440181,-316.1441339,0.0001287,2]
[339108352,1727255440191,-1688.4995207,0.0001287,2]
[339108354,1727255440200,-331.68886943,0.00012873,2]
[339108356,1727255440209,-500.0,0.00012873,2]
[339108358,1727255440218,-150.0,0.00012873,2]
[339108360,1727255440228,-500.0,0.00012874,2]
[339108362,1727255440237,-150.0,0.00012874,2]
[339108364,1727255440247,-1951.27690542,0.00012875,2]
[339108366,1727255440259,-200.0,0.00012876,2]
[339108368,1727255440269,-500.0,0.00012876,2]
[339108370,1727255440279,-504.47219645,0.00012876,2]
[339108372,1727255440289,-500.0,0.00012876,2]
[339108374,1727255440298,-507.38596199,0.00012876,2]
[339108377,1727255440308,-155.88941494,0.00012876,2]
[339108379,1727255440318,-526.34687969,0.00012876,2]
[339108381,1727255440327,-2000.0,0.00012876,2]
[339108382,1727255440336,-200.0,0.00012876,2]
[339108385,1727255440347,-262.9375364,0.00012876,2]
[339108387,1727255440359,-501.79030936,0.00012876,2]
[339108389,1727255440368,-500.0,0.00012876,2]
[339108391,1727255440378,-367.78901993,0.00012876,2]
[339108392,1727255440387,-500.0,0.00012876,2]
[339108395,1727255440397,-500.0,0.00012876,2]
[339108397,1727255440406,-500.0,0.00012876,2]
[339108399,1727255440417,-500.0,0.00012876,2]
[339108401,1727255440426,-500.0,0.00012876,2]
[339108403,1727255440436,-500.0,0.00012876,2]
[339108405,1727255440445,-316.40246335,0.00012876,2]
[339108407,1727255440456,-548.59,0.00012876,2]
[339108409,1727255440465,-912.96,0.00012876,2]
[339108411,1727255440475,-600.82,0.00012876,2]
[339108413,1727255440485,-1518.45,0.00012876,2]
[339108415,1727255440494,-500.0,0.00012876,2]
[339108417,1727255440504,-500.0,0.00012876,2]
[339108419,1727255440513,-500.0,0.00012876,2]
[339108421,1727255440524,-500.0,0.00012876,2]
[339108423,1727255440534,-500.0,0.00012876,2]
[339108425,1727255440543,-500.0,0.00012876,2]
[339108427,1727255440553,-500.0,0.00012876,2]
[339108429,1727255440563,-351.0504358,0.00012876,2]
[339108431,1727255440572,-3963.07,0.00012876,2]
[339108433,1727255440582,-3963.07,0.00012876,2]
[339108435,1727255440591,-3963.07,0.00012876,2]
[339108437,1727255440601,-3963.07,0.00012876,2]
[339108439,1727255440611,-3963.07,0.00012876,2]
[339108440,1727255440620,-3963.07,0.00012876,2]
[339108442,1727255440629,-3963.07,0.00012876,2]
[339108443,1727255440639,-3963.07,0.00012876,2]
[339108444,1727255440648,-3963.07,0.00012876,2]
[339108445,1727255440658,-3963.07,0.00012876,2]
[339108446,1727255440667,-3963.07,0.00012876,2]
[339108447,1727255440677,-500.0,0.00012876,2]
[339108448,1727255440687,-500.0,0.00012876,2]
[339108449,1727255440696,-2409.75,0.00012876,2]
[339108450,1727255440705,-836.62,0.00012876,2]
[339108451,1727255440715,-500.0,0.00012876,2]
[339108452,1727255440724,-194.38326239,0.00012876,2]
[339108453,1727255440734,-500.0,0.00012876,2]
[339108454,1727255440743,-500.0,0.00012876,2]
[339108455,1727255440752,-515.84761592,0.00012876,2]
[339108456,1727255440761,-500.0,0.00012876,2]
[339108457,1727255440771,-500.0,0.00012876,2]
[339108458,1727255440780,-500.0,0.00012876,2]
[339108459,1727255440792,-500.0,0.00012878,2]
[339108460,1727255440801,-500.0,0.00012878,2]
[339108461,1727255440811,-272.24496728,0.00012879,2]
[339108462,1727255440822,-548.59,0.00012879,2]
[339108463,1727255440831,-912.96,0.00012879,2]
[339108464,1727255440841,-600.82,0.00012879,2]
[339108465,1727255440850,-1518.45,0.00012879,2]
[339108466,1727255440860,-3963.07,0.00012879,2]
[339108467,1727255440869,-500.0,0.00012879,2]
[339108468,1727255440878,-282.34111714,0.00012879,2]
[339108469,1727255440887,-2409.75,0.00012879,2]
[339108470,1727255440897,-836.62,0.00012879,2]
[339108471,1727255440906,-462.57178179,0.00012879,2]
[339108472,1727255440916,-499.799772,0.00012879,2]
[339108473,1727255440925,-294.79053593,0.00012879,2]
[339108474,1727255440934,-500.0,0.00012879,2]
[339108475,1727255440943,-500.0,0.00012879,2]
[339108476,1727255440952,-243643.0,0.0001288,2]
[339108477,1727255440962,-500.0,0.00012882,2]
[339108478,1727255440971,-500.0,0.00012882,2]
[339108479,1727255440981,-500.0,0.00012882,2]
[339108480,1727255440991,-500.0,0.00012882,2]
[339108481,1727255441000,-500.0,0.00012882,2]
[339108482,1727255441009,-156.291,0.00012886,2]
[339108483,1727255441020,-225.87,0.00012888,2]
[339108484,1727255441029,-548.59,0.0001289,2]
[339108485,1727255441040,-912.96,0.0001289,2]
[339108486,1727255441049,-600.82,0.0001289,2]
[339108487,1727255441059,-1518.45,0.0001289,2]
[339108488,1727255441068,-500.0,0.0001289,2]
[339108489,1727255441078,-2409.75,0.0001289,2]
[339108490,1727255441087,-836.62,0.0001289,2]
[339108491,1727255441096,-4420.0496555,0.00012891,2]
[339108492,1727255441106,-4207.1419309,0.00012891,2]
[339108493,1727255441115,-3994.2342064,0.00012891,2]
[339108494,1727255441125,-3781.3264819,0.00012891,2]
[339108495,1727255441136,-3568.4187574,0.00012891,2]
[339108496,1727255441145,-301.6157187,0.00012891,2]
[339108497,1727255441154,-287.0873036,0.00012891,2]
[339108498,1727255441163,-272.5588884,0.00012891,2]
[339108499,1727255441173,-258.0304733,0.00012891,2]
[339108500,1727255441182,-243.5020581,0.00012891,2]
[339108501,1727255441193,-1610.9044639,0.00012891,2]
[339108502,1727255441202,-1533.3094072,0.00012891,2]
[339108503,1727255441211,-1455.7143504,0.00012891,2]
[339108504,1727255441221,-1378.1192937,0.00012891,2]
[339108505,1727255441230,-1300.5242369,0.00012891,2]
[339108506,1727255441239,-500.0,0.00012891,2]
[339108507,1727255441248,-500.0,0.00012891,2]
[339108508,1727255441257,-500.0,0.00012891,2]
[339108509,1727255441267,-500.0,0.00012891,2]
[339108510,1727255441275,-500.0,0.00012891,2]
[339108511,1727255441284,-179.99,0.00012893,2]
[339108512,1727255441296,-2369.75986596,0.00012898,2]
[339108513,1727255441305,-3963.07,0.00012898,2]
[339108514,1727255441314,-521.13832262,0.00012898,2]
[339108515,1727255441323,-500.0,0.00012898,2]
[339108516,1727255441333,-1004.90251441,0.00012899,2]
[339108517,1727255441343,-150.0,0.00012899,2]
[339108518,1727255441352,-178.72351322,0.00012899,2]
[339108519,1727255441365,-500.0,0.00012899,2]
[339108520,1727255441374,-500.0,0.00012899,2]
[339108521,1727255441384,-500.0,0.00012899,2]
[339108522,1727255441393,-350.21875994,0.00012899,2]
[339108523,1727255441403,-548.59,0.00012899,2]
[339108524,1727255441412,-548.59,0.00012899,2]
[339108525,1727255441422,-548.59,0.00012899,2]
[339108526,1727255441432,-548.59,0.00012899,2]
[339108527,1727255441441,-548.59,0.00012899,2]
[339108528,1727255441451,-548.59,0.00012899,2]
[339108529,1727255441460,-548.59,0.00012899,2]
[339108530,1727255441469,-548.59,0.00012899,2]
[339108531,1727255441478,-548.59,0.00012899,2]
[339108532,1727255441487,-548.59,0.00012899,2]
[339108533,1727255441497,-548.59,0.00012899,2]
[339108534,1727255441506,-548.59,0.00012899,2]
[339108535,1727255441516,-548.59,0.00012899,2]
[339108536,1727255441727,-548.59,0.00012899,2]
[339108537,1727255441737,-548.59,0.00012899,2]
[339108538,1727255441747,-548.59,0.00012899,2]
[339108539,1727255441757,-548.59,0.00012899,2]
[339108540,1727255441767,-548.59,0.00012899,2]
[339108541,1727255441776,-548.59,0.00012899,2]
[339108542,1727255441786,-548.59,0.00012899,2]
[339108543,1727255441797,-548.78468285,0.00012899,2]
[339108544,1727255441807,-912.96,0.00012899,2]
[339108545,1727255441817,-912.96,0.00012899,2]
[339108546,1727255441827,-912.96,0.00012899,2]
[339108547,1727255441837,-912.96,0.00012899,2]
[339108548,1727255441847,-912.96,0.00012899,2]
[339108549,1727255441856,-912.96,0.00012899,2]
[339108550,1727255441867,-912.96,0.00012899,2]
[339108551,1727255441877,-912.96,0.00012899,2]
[339108552,1727255441886,-912.96,0.00012899,2]
[339108553,1727255441896,-912.96,0.00012899,2]
[339108554,1727255441906,-912.96,0.00012899,2]
[339108555,1727255441916,-912.96,0.00012899,2]
[339108556,1727255441926,-912.96,0.00012899,2]
[339108557,1727255441935,-912.96,0.00012899,2]
[339108558,1727255441945,-912.96,0.00012899,2]
[339108559,1727255441961,-912.96,0.00012899,2]
[339108560,1727255441975,-912.96,0.00012899,2]
[339108561,1727255441985,-912.96,0.00012899,2]
[339108562,1727255441995,-912.96,0.00012899,2]
[339108563,1727255442005,-912.96,0.00012899,2]
[339108564,1727255442014,-913.17112198,0.00012899,2]
[339108565,1727255442024,-600.82,0.00012899,2]
[339108566,1727255442034,-600.82,0.00012899,2]
[339108567,1727255442044,-600.82,0.00012899,2]
[339108568,1727255442054,-600.82,0.00012899,2]
[339108569,1727255442063,-600.82,0.00012899,2]
[339108570,1727255442072,-600.82,0.00012899,2]
[339108571,1727255442082,-600.82,0.00012899,2]
[339108572,1727255442091,-600.82,0.00012899,2]
[339108573,1727255442100,-600.82,0.00012899,2]
[339108574,1727255442109,-600.82,0.00012899,2]
[339108575,1727255442118,-600.82,0.00012899,2]
[339108576,1727255442128,-600.82,0.00012899,2]
[339108577,1727255442137,-600.82,0.00012899,2]
[339108578,1727255442146,-600.82,0.00012899,2]
[339108579,1727255442155,-600.82,0.00012899,2]
[339108580,1727255442164,-600.82,0.00012899,2]
[339108581,1727255442174,-600.82,0.00012899,2]
[339108582,1727255442183,-600.82,0.00012899,2]
[339108583,1727255442192,-600.82,0.00012899,2]
[339108584,1727255442201,-600.82,0.00012899,2]
[339108585,1727255442210,-601.01403628,0.00012899,2]
[339108586,1727255442219,-1518.45,0.00012899,2]
[339108587,1727255442229,-1518.45,0.00012899,2]
[339108588,1727255442238,-1518.45,0.00012899,2]
[339108589,1727255442247,-1518.45,0.00012899,2]
[339108590,1727255442256,-1518.45,0.00012899,2]
[339108591,1727255442265,-1518.45,0.00012899,2]
[339108592,1727255442274,-1518.45,0.00012899,2]
[339108593,1727255442283,-1518.45,0.00012899,2]
[339108594,1727255442293,-1518.45,0.00012899,2]
[339108595,1727255442302,-1518.45,0.00012899,2]